bitfinex/quotes_SOLUSD_20250118
["timestamp","ask_amount","ask_price","bid_price","bid_amount"]
[1737221578443,23.776884,251.05,251.01,31.93417938]
[1737221578766,0.74700494,251.04,250.99,31.99717938]
[1737221579066,23.776884,251.0,250.99,0.063]
[1737221579253,36.22818419,251.0,250.87,31.93417938]
[1737221579453,32.24418419,251.0,250.93,31.93417938]
[1737221580065,36.22818419,251.0,250.91,31.93417938]
[1737221580255,31.93417938,250.99,250.91,31.93417938]
[1737221580452,0.74728279,250.98,250.91,31.93417938]
[1737221580760,31.93417938,251.1,250.96,31.93417938]
[1737221580967,0.74695714,251.09,251.04,31.93417938]
[1737221581262,2.16895241,251.23,251.08,31.93417938]
[1737221581563,0.74685841,251.23,251.14,31.93417938]
[1737221581752,0.74657682,251.29,251.22,31.93417938]
[1737221581953,0.74632979,251.29,251.24,31.93417938]
[1737221582266,0.74625403,251.28,251.22,31.93417938]
[1737221582466,31.93417938,251.36,251.26,31.93417938]
[1737221582649,0.746115,251.38,251.3,31.93417938]
[1737221582850,0.746115,251.38,251.31,31.93417938]
[1737221583157,0.74608669,251.37,251.29,31.93417938]
[1737221583353,0.7461264,251.38,251.33,31.93417938]
[1737221583648,1.39342313,251.46,251.37,31.93417938]
[1737221583854,0.7457551,251.45,251.16,31.93417938]
[1737221584052,31.93417938,251.37,251.28,31.93417938]
[1737221584265,23.776884,251.32,251.24,31.93417938]
[1737221584465,23.776884,251.3,251.24,31.93417938]
[1737221584660,0.74628607,251.29,251.24,31.93417938]
[1737221584856,0.74628607,251.29,251.22,31.93417938]
[1737221585056,31.93417938,251.36,251.26,31.93417938]
[1737221585256,0.7461231,251.41,251.34,31.93417938]
[1737221585465,0.74579988,251.44,251.39,31.93417938]
[1737221585658,0.74582596,251.48,251.39,31.93417938]
[1737221585965,4.72232596,251.48,251.39,31.93417938]
[1737221586146,4.72232596,251.48,251.43,31.93417938]
[1737221586147,0.74582596,251.48,251.43,31.93417938]
[1737221586471,0.74582596,251.48,251.29,31.93417938]
[1737221586472,31.93417938,251.46,251.35,31.93417938]
[1737221586672,31.93417938,251.5,251.39,31.93417938]
[1737221586855,31.93417938,251.48,251.37,31.93417938]
[1737221587062,0.74585427,251.47,251.37,31.93417938]
[1737221587266,31.93417938,251.5,251.39,31.93417938]
[1737221587467,0.74569266,251.49,251.39,31.93417938]
[1737221587979,32.67991714,251.56,251.45,31.93417938]
[1737221588172,31.93417938,251.54,251.43,31.93417938]
[1737221588473,0.74564344,251.53,251.43,31.93417938]
[1737221588655,0.74564344,251.53,251.45,31.93417938]
[1737221588854,1.41729965,251.6,251.51,31.93417938]
[1737221589061,0.77537712,251.61,251.55,31.93417938]
[1737221589266,0.03,251.61,251.55,31.93417938]
[1737221589751,0.03,251.61,251.6,31.93417938]
[1737221590752,0.03,251.61,251.52,31.93417938]
[1737221590957,0.03,251.61,251.58,31.93417938]
[1737221591271,0.03,251.61,251.6,31.93417938]
[1737221594481,0.063,251.8,251.6,87.64524276]
[1737221594786,0.063,251.8,251.78,31.93417938]
[1737221595286,0.063,251.8,251.79,31.93417938]
[1737221595469,0.063,251.8,251.79,55.71106338]
[1737221595668,0.063,251.8,251.6,7.2723]
[1737221595861,0.063,251.8,251.79,31.93417938]
[1737221596175,31.93417938,252.11,251.8,23.776884]
[1737221596479,3.9983,252.0,251.91,31.93417938]
[1737221596773,3.9983,252.0,251.83,31.93417938]
[1737221596774,31.93417938,251.94,251.83,31.93417938]
[1737221596981,0.7444524,251.93,251.83,31.93417938]
[1737221597176,23.776884,251.92,251.83,31.93417938]
[1737221597374,0.74449784,251.91,251.85,31.93417938]
[1737221597572,31.93417938,251.86,251.75,31.93417938]
[1737221597779,0.74471473,251.85,251.77,31.93417938]
[1737221597975,0.74457587,251.87,251.79,31.93417938]
[1737221598284,13.892,251.94,251.83,31.93417938]
[1737221598285,0.74457087,251.89,251.83,31.93417938]
[1737221598483,23.776884,251.89,251.78,31.93417938]
[1737221598778,20.0,251.84,251.76,31.93417938]
[1737221598968,20.0,251.84,251.68,31.93417938]
[1737221598969,0.74469673,251.87,251.83,31.93417938]
[1737221599169,0.74469673,251.87,251.68,31.93417938]
[1737221599170,0.7443954,252.06,251.87,23.776884]
[1737221599477,32.6781218,252.09,251.98,31.93417938]
[1737221599666,3.9678,252.03,251.95,31.93417938]
[1737221599866,0.58433594,252.04,251.96,31.93417938]
[1737221600062,31.93417938,252.09,251.98,31.93417938]
[1737221600385,3.9678,252.03,251.96,31.93417938]
[1737221600586,0.77409599,252.0,251.94,31.93417938]
[1737221600780,0.03,252.0,251.94,31.93417938]
[1737221600982,0.77408048,252.0,251.92,31.93417938]
[1737221601280,31.93417938,251.95,251.84,31.93417938]
[1737221601581,0.74427087,251.94,251.86,31.93417938]
[1737221601787,0.74437882,251.98,251.88,31.93417938]
[1737221601987,31.93417938,251.93,251.84,31.93417938]
[1737221602185,0.74445392,251.93,251.84,31.93417938]
[1737221602378,32.6786333,251.93,251.84,31.93417938]
[1737221603195,0.74445392,251.93,251.84,31.93417938]
[1737221603493,0.74433847,251.94,251.84,31.93417938]
[1737221603684,31.93417938,251.91,251.81,31.93417938]
[1737221603895,0.74446204,251.9,251.81,31.93417938]
[1737221604185,23.776884,251.81,251.73,0.03]
[1737221604386,55.71106338,251.74,251.61,31.93417938]
[1737221604688,31.93417938,251.71,251.59,31.93417938]
[1737221604871,0.74503393,251.72,251.63,31.93417938]
[1737221605574,3.972,251.76,251.67,31.93417938]
[1737221605887,0.74485585,251.75,251.69,31.93417938]
[1737221606189,31.93417938,251.73,251.63,31.93417938]
[1737221606392,0.74504923,251.76,251.67,31.93417938]
[1737221607586,0.74504923,251.76,251.69,31.93417938]
[1737221607785,3.9709,251.83,251.74,31.93417938]
[1737221607983,0.74470122,251.82,251.74,31.93417938]
[1737221608288,0.74469166,251.83,251.78,31.93417938]
[1737221608488,31.93417938,251.86,251.76,31.93417938]
[1737221608692,0.74463457,251.85,251.76,31.93417938]
[1737221609395,31.93417938,251.9,251.8,31.93417938]
[1737221609577,0.74443729,251.89,251.83,31.93417938]
[1737221609767,0.74446165,251.91,251.87,31.93417938]
[1737221610086,0.03,252.0,251.9,31.93417938]
[1737221610394,0.03,252.0,251.97,31.93417938]
[1737221610684,0.03,252.0,251.99,31.93417938]
[1737221611276,0.03,252.0,251.92,15.872536]
[1737221611580,0.03,252.0,251.99,55.71106338]
[1737221611886,0.03,252.01,251.99,31.93417938]
[1737221613190,0.03,252.12,252.0,55.71106338]
[1737221613396,0.03,252.12,252.11,31.93417938]
[1737221614087,0.03,252.12,251.97,7.7414]
[1737221614388,0.03,252.12,252.11,31.93417938]
[1737221614605,0.03,252.12,252.09,31.93417938]
[1737221614767,0.03,252.12,252.05,31.93417938]
[1737221614968,0.03,252.12,252.03,31.93417938]
[1737221615475,0.03,252.12,252.07,31.93417938]
[1737221615681,3.9965,252.12,252.07,31.93417938]
[1737221616080,0.03,252.12,252.09,31.93417938]
[1737221616283,0.03,252.12,252.07,31.93417938]
[1737221616478,3.9964,252.12,252.05,31.93417938]
[1737221617100,0.74380411,252.11,251.94,31.93417938]
[1737221617395,0.03,252.12,252.09,31.93417938]
[1737221617593,0.03,252.12,252.11,31.93417938]
[1737221618600,0.03,252.12,252.11,55.71106338]
[1737221619172,0.74353726,252.32,252.12,23.776884]
[1737221619378,3.9918,252.41,252.31,31.93417938]
[1737221619673,0.03,252.41,252.33,31.93417938]
[1737221619887,0.03,252.41,252.35,31.93417938]
[1737221620098,0.03,252.41,252.2,31.93417938]
[1737221620099,0.03,252.41,252.37,31.93417938]
[1737221620613,0.03,252.41,252.38,23.776884]
[1737221620801,232.3273,252.65,252.38,23.776884]
[1737221620802,0.74244418,252.59,252.4,87.64524276]
[1737221620982,31.93417938,252.56,252.46,31.93417938]
[1737221621299,31.93417938,252.56,252.33,31.93417938]
[1737221621300,31.93417938,252.53,252.42,31.93417938]
[1737221621490,31.93417938,252.44,252.34,31.93417938]
[1737221621695,31.93417938,252.42,252.3,31.93417938]
[1737221621894,0.74309267,252.41,252.34,31.93417938]
[1737221622096,31.93417938,252.36,252.03,12.0217]
[1737221622297,31.93417938,252.28,252.18,31.93417938]
[1737221622481,31.93417938,252.26,252.16,31.93417938]
[1737221622680,32.67769246,252.25,252.15,31.93417938]
[1737221622991,0.74351308,252.25,252.17,31.93417938]
[1737221623186,1.4590489,252.31,252.23,31.93417938]
[1737221623386,0.74323548,252.3,252.21,31.93417938]
[1737221623586,31.93417938,252.38,252.27,31.93417938]
[1737221623780,0.74311058,252.37,252.29,31.93417938]
[1737221623996,0.74315141,252.39,252.33,31.93417938]
[1737221624306,3.9616,252.42,252.33,31.93417938]
[1737221624307,0.74294275,252.41,252.33,31.93417938]
[1737221624482,0.74294275,252.41,252.31,31.93417938]
[1737221624683,31.93417938,252.4,252.31,31.93417938]
[1737221624982,0.74304346,252.39,252.31,31.93417938]
[1737221625179,0.74304346,252.39,252.33,31.93417938]
[1737221625382,0.74299219,252.41,252.31,31.93417938]
[1737221625580,35.89637938,252.38,252.27,31.93417938]
[1737221625799,0.74319173,252.37,252.27,31.93417938]
[1737221626004,55.71106338,252.36,252.27,31.93417938]
[1737221626191,0.74325832,252.35,252.27,31.93417938]
[1737221626708,0.74325832,252.35,252.2,31.93417938]
[1737221626709,0.74316011,252.37,252.29,31.93417938]
[1737221627012,31.93417938,252.36,252.27,31.93417938]
[1737221627307,0.74317172,252.35,252.27,31.93417938]
[1737221627794,4.70587172,252.35,252.29,31.93417938]
[1737221628183,24.70587172,252.35,252.27,31.93417938]
[1737221628483,24.70587172,252.35,252.09,1.42993091]
[1737221628484,55.71106338,252.34,252.25,31.93417938]
[1737221628705,23.776884,252.32,252.23,31.93417938]
[1737221628908,31.93417938,252.3,252.21,31.93417938]
[1737221629102,0.74330542,252.29,252.2,31.93417938]
[1737221629604,31.93417938,252.24,252.14,31.93417938]
[1737221629803,31.93417938,252.22,252.14,31.93417938]
[1737221630003,31.93417938,252.22,251.94,43.85417938]
[1737221630004,20.0,252.13,252.01,31.93417938]
[1737221630197,31.93417938,252.05,251.96,31.93417938]
[1737221630499,15.874098,252.21,252.03,31.93417938]
[1737221630684,0.74340275,252.31,252.01,11.92]
[1737221630882,3.9627,252.35,252.24,31.93417938]
[1737221631081,3.9627,252.35,252.01,11.92]
[1737221631082,31.93417938,252.32,252.22,31.93417938]
[1737221631306,31.93417938,252.28,252.18,31.93417938]
[1737221631508,0.74331275,252.27,252.18,31.93417938]
[1737221631695,0.74325807,252.28,252.22,31.93417938]
[1737221631896,4.70715807,252.28,252.2,31.93417938]
[1737221632094,3.9632,252.32,252.24,31.93417938]
[1737221632300,31.93417938,252.31,252.22,31.93417938]
[1737221632502,3.9632,252.32,252.24,31.93417938]
[1737221632698,0.74321941,252.32,252.24,31.93417938]
[1737221633100,32.67741005,252.35,252.26,31.93417938]
[1737221633302,0.74313424,252.34,252.28,31.93417938]
[1737221633508,0.7431413,252.37,252.28,31.93417938]
[1737221633697,0.7431413,252.37,252.06,1.48697664]
[1737221633698,20.0,252.31,252.06,1.48697664]
[1737221633904,20.0,252.31,251.94,31.93417938]
[1737221633905,3.9638,252.28,252.18,31.93417938]
[1737221634094,0.74334268,252.28,252.2,31.93417938]
[1737221634298,31.93417938,252.25,252.14,31.93417938]
[1737221634494,0.74345421,252.26,252.18,31.93417938]
[1737221634710,31.93417938,252.27,252.18,31.93417938]
[1737221634916,55.71106338,252.25,252.14,31.93417938]
[1737221635212,55.71106338,252.21,252.1,31.93417938]
[1737221635414,23.776884,252.19,252.1,31.93417938]
[1737221635629,23.776884,252.19,251.94,31.93417938]
[1737221635630,23.776884,252.16,252.06,31.93417938]
[1737221635826,51.93417938,252.12,252.02,31.93417938]
[1737221636001,4.71041113,252.11,252.02,31.93417938]
[1737221636313,31.93417938,252.04,251.93,31.93417938]
[1737221636515,31.93417938,252.08,251.97,31.93417938]
[1737221636815,31.93417938,252.06,251.97,31.93417938]
[1737221637016,0.74404386,252.05,251.97,31.93417938]
[1737221637397,0.74403966,252.07,252.0,0.03]
[1737221638011,23.776884,252.06,252.0,0.03]
[1737221638312,0.74408122,252.05,252.01,31.93417938]
[1737221638519,3.967,252.08,252.01,31.93417938]
[1737221638719,0.74399115,252.07,252.0,0.03]
[1737221639021,23.776884,252.06,252.0,0.03]
[1737221639198,0.74411451,252.05,252.0,0.03]
[1737221639915,0.74415526,252.06,252.0,31.96417938]
[1737221640097,0.74398365,252.09,252.0,31.96417938]
[1737221640641,4.71088365,252.09,252.0,31.96417938]
[1737221640803,23.776884,252.05,252.0,0.03]
[1737221641003,31.93417938,252.01,252.0,0.03]
[1737221641314,8.38429251,252.06,252.0,0.03]
[1737221641524,7.64,252.06,252.03,31.93417938]
[1737221642221,7.64,252.06,252.01,31.93417938]
[1737221642419,8.38399072,252.06,252.01,31.93417938]
[1737221642718,7.64,252.06,252.01,31.93417938]
[1737221642928,4.71083379,252.09,252.05,31.93417938]
[1737221643109,56.45498604,252.08,252.0,0.03]
[1737221643316,31.93417938,252.06,252.0,0.03]
[1737221643617,23.776884,252.01,252.0,0.03]
[1737221643816,23.776884,251.97,251.95,0.03]
[1737221644000,32.67855554,251.96,251.95,0.03]
[1737221644201,31.93417938,252.0,251.95,0.03]
[1737221644511,0.74421739,251.99,251.95,0.03]
[1737221646299,23.776884,251.92,251.82,31.93417938]
[1737221646505,23.776884,251.92,251.7,7.4015]
[1737221646506,23.776884,251.88,251.7,7.4015]
[1737221646700,23.776884,251.88,251.55,31.93417938]
[1737221646701,20.0,251.81,251.73,31.96417938]
[1737221646899,23.776884,251.79,251.73,0.03]
[1737221647106,0.74492615,251.79,251.73,31.96417938]
[1737221647299,31.93417938,251.82,251.73,0.03]
[1737221647505,31.93417938,251.78,251.73,0.03]
[1737221647800,31.93417938,251.76,251.73,0.03]
[1737221648005,0.74495113,251.75,251.73,0.03]
[1737221648211,75.71106338,251.74,251.64,31.93417938]
[1737221648411,4.71751923,251.73,251.64,31.93417938]
[1737221648926,0.74501923,251.73,251.64,31.93417938]
[1737221649330,0.74501923,251.73,251.66,31.93417938]
[1737221649506,1.49998272,251.81,251.53,15.894042]
[1737221649507,35.90497938,251.84,251.72,31.93417938]
[1737221649701,31.93417938,251.78,251.68,31.93417938]
[1737221649907,0.74493104,251.77,251.7,31.93417938]
[1737221650112,0.74491819,251.79,251.68,31.93417938]
[1737221650326,31.93417938,251.87,251.76,31.93417938]
[1737221650503,0.74464416,251.86,251.76,31.93417938]
[1737221650709,0.74464416,251.86,251.78,31.93417938]
[1737221650928,0.74457903,251.87,251.82,31.93417938]
[1737221651228,0.74455722,251.9,251.82,31.93417938]
[1737221651627,31.93417938,251.88,251.77,31.93417938]
[1737221651815,31.93417938,251.84,251.73,31.96417938]
[1737221652016,0.74472141,251.85,251.77,31.93417938]
[1737221652221,0.74472141,251.85,251.73,0.03]
[1737221652222,35.90367938,251.92,251.83,31.93417938]
[1737221652433,31.93417938,251.89,251.79,31.93417938]
[1737221652634,0.74458785,251.88,251.81,31.93417938]
[1737221652812,31.93417938,251.89,251.77,31.93417938]
[1737221653010,31.93417938,251.85,251.75,31.93417938]
[1737221653308,0.74468979,251.85,251.81,31.93417938]
[1737221653508,0.74457476,251.9,251.73,0.03]
[1737221653816,0.74440557,252.06,251.89,31.93417938]
[1737221654016,3.9667,252.1,252.01,31.93417938]
[1737221654228,0.74394495,252.09,252.01,31.93417938]
[1737221654415,35.90107938,252.08,251.97,31.93417938]
[1737221654734,0.74409128,252.07,252.03,31.93417938]
[1737221654908,0.74393696,252.12,252.03,31.93417938]
[1737221655103,4.71043696,252.12,252.04,31.93417938]
[1737221655310,36.64461634,252.12,252.02,31.93417938]
[1737221655725,36.64461634,252.12,251.85,1.48146043]
[1737221655726,31.93417938,252.1,252.0,31.93417938]
[1737221656035,0.7439831,252.09,252.0,31.93417938]
[1737221656336,0.74385763,252.08,252.03,31.93417938]
[1737221656633,0.74392039,252.11,252.05,31.93417938]
[1737221656816,4.71005302,252.13,252.05,31.93417938]
[1737221657023,0.74385508,252.2,252.12,31.93417938]
[1737221657229,0.743631,252.22,252.17,31.93417938]
[1737221657432,0.74352162,252.25,252.17,31.93417938]
[1737221658132,31.93417938,252.21,252.11,31.93417938]
[1737221658337,0.74364166,252.2,252.11,31.93417938]
[1737221658710,0.74364166,252.2,252.13,31.93417938]
[1737221658910,0.74356767,252.21,252.13,31.93417938]
[1737221659107,0.74356767,252.21,252.07,31.93417938]
[1737221659108,0.74356767,252.21,252.17,31.93417938]
[1737221659341,0.74339712,252.26,252.19,31.93417938]
[1737221659812,35.89757938,252.31,252.2,31.93417938]
[1737221660020,31.93417938,252.29,252.2,31.93417938]
[1737221660228,0.7433555,252.28,252.22,31.93417938]
[1737221660426,0.063,252.32,252.07,31.93417938]
[1737221660427,0.063,252.32,252.26,31.93417938]
[1737221660634,4.0263,252.32,252.27,31.93417938]
[1737221660835,0.063,252.32,252.27,31.93417938]
[1737221661024,0.063,252.32,252.29,31.93417938]
[1737221662131,0.063,252.38,252.31,87.64524276]
[1737221662326,0.063,252.38,252.37,31.93417938]
[1737221662524,0.063,252.44,252.37,31.93417938]
[1737221662726,0.063,252.44,252.43,31.93417938]
[1737221663234,0.063,252.44,252.43,63.86835876]
[1737221663614,4.70097826,252.62,252.43,63.86835876]
[1737221663819,0.74237826,252.62,252.53,31.93417938]
[1737221664318,31.93417938,252.58,252.47,31.93417938]
[1737221664518,0.7426128,252.57,252.47,31.93417938]
[1737221664935,0.7426128,252.57,252.49,31.93417938]
[1737221665140,0.74243674,252.57,252.49,31.93417938]
[1737221665818,31.93417938,252.56,252.47,31.93417938]
[1737221666016,31.93417938,252.52,252.43,31.93417938]
[1737221666339,3.9588,252.6,252.51,31.93417938]
[1737221666642,3.9588,252.6,252.46,31.93417938]
[1737221666643,0.74251925,252.59,252.53,31.93417938]
[1737221667144,0.74241977,252.63,252.57,31.93417938]
[1737221667341,0.063,252.64,252.62,31.93417938]
[1737221668038,4.0212,252.64,252.6,31.93417938]
[1737221668238,23.776884,252.62,252.54,31.93417938]
[1737221668540,0.74245466,252.61,252.56,31.93417938]
[1737221668916,0.74240018,252.62,252.54,31.93417938]
[1737221669117,31.93417938,252.58,252.48,31.93417938]
[1737221669430,23.776884,252.56,252.48,31.93417938]
[1737221669736,23.776884,252.53,252.33,31.93417938]
[1737221669942,0.74283288,252.52,252.45,31.93417938]
[1737221670453,3.9602,252.51,252.45,31.93417938]
[1737221670743,0.74273752,252.5,252.45,31.93417938]
[1737221671040,0.74273752,252.5,252.43,31.93417938]
[1737221671248,23.776884,252.49,252.41,31.93417938]
[1737221671422,23.776884,252.47,252.39,31.93417938]
[1737221671628,23.776884,252.45,252.39,31.93417938]
[1737221671946,31.93417938,252.42,252.33,31.93417938]
[1737221672132,0.74308238,252.5,252.41,31.93417938]
[1737221672334,0.74265816,252.55,252.49,31.93417938]
[1737221672516,0.7425347,252.54,252.45,31.93417938]
[1737221672716,0.7425347,252.54,252.47,31.93417938]
[1737221672932,31.93417938,252.51,252.41,31.93417938]
[1737221673146,31.93417938,252.49,252.39,31.93417938]
[1737221673334,13.8576,252.57,252.24,5.7449]
[1737221673335,31.93417938,252.45,252.35,31.93417938]
[1737221673642,31.93417938,252.49,252.39,31.93417938]
[1737221673822,31.93417938,252.45,252.35,31.93417938]
[1737221674144,31.93417938,252.39,252.29,31.93417938]
[1737221674347,0.74318235,252.38,252.29,31.93417938]
[1737221674527,0.74318235,252.38,252.33,31.93417938]
[1737221674717,4.70548235,252.38,252.29,31.93417938]
[1737221675439,31.93417938,252.33,252.23,31.93417938]
[1737221675627,0.74336893,252.32,252.27,31.93417938]
[1737221675823,23.776884,252.35,252.27,31.93417938]
[1737221676029,0.7432639,252.34,252.27,31.93417938]
[1737221676228,23.776884,252.34,252.25,31.93417938]
[1737221676440,3.9633,252.31,252.23,31.93417938]
[1737221676643,0.74333155,252.3,252.23,31.93417938]
[1737221677348,0.74333155,252.3,252.12,23.776884]
[1737221677529,31.93417938,252.43,252.28,31.93417938]
[1737221677730,0.7430268,252.42,252.33,31.93417938]
[1737221678949,31.93417938,252.39,252.29,31.93417938]
[1737221679154,0.74313402,252.38,252.29,31.93417938]
[1737221679333,0.74313402,252.38,252.25,31.93417938]
[1737221679334,31.93417938,252.37,252.25,31.93417938]
[1737221679524,31.93417938,252.32,252.23,31.93417938]
[1737221679723,0.74333216,252.31,252.23,31.93417938]
[1737221680147,0.74333216,252.31,252.21,31.93417938]
[1737221681545,0.74328115,252.32,252.25,31.93417938]
[1737221681729,0.74317373,252.41,252.31,31.93417938]
[1737221682046,4.70497373,252.41,252.33,31.93417938]
[1737221682251,3.9616,252.43,252.35,31.93417938]
[1737221682457,4.70451848,252.43,252.33,31.93417938]
[1737221682637,31.93417938,252.42,252.31,31.93417938]
[1737221682949,0.74304857,252.41,252.31,31.93417938]
[1737221683347,35.89607938,252.4,252.29,31.93417938]
[1737221683523,0.74313674,252.39,252.31,31.93417938]
[1737221684029,55.71106338,252.38,252.29,31.93417938]
[1737221684224,0.74316305,252.37,252.29,31.93417938]
[1737221684432,0.74310198,252.39,252.29,31.93417938]
[1737221685048,3.9622,252.38,252.29,31.93417938]
[1737221685234,0.74314384,252.37,252.29,31.93417938]
[1737221686157,0.74314384,252.37,252.31,31.93417938]
[1737221686326,0.74314384,252.37,252.33,0.03]
[1737221686647,23.776884,252.36,252.33,0.03]
[1737221686830,31.93417938,252.34,252.33,0.03]
[1737221687032,32.67742119,252.37,252.33,0.03]
[1737221687343,3.9622,252.39,252.34,31.93417938]
[1737221687542,3.9618,252.41,252.34,31.93417938]
[1737221687750,0.74298316,252.44,252.38,31.93417938]
[1737221688044,0.74281531,252.48,252.43,31.93417938]
[1737221688226,31.93417938,252.45,252.36,31.93417938]
[1737221688426,0.74291829,252.44,252.38,31.93417938]
[1737221688629,0.74284769,252.46,252.38,31.93417938]
[1737221688827,31.93417938,252.45,252.36,31.93417938]
[1737221689029,35.89557938,252.43,252.34,31.93417938]
[1737221689338,0.74301746,252.42,252.34,31.93417938]
[1737221690153,4.70420062,252.45,252.38,31.93417938]
[1737221690349,0.74300062,252.45,252.33,31.96417938]
[1737221690522,0.74285283,252.48,252.42,31.93417938]
[1737221690722,0.74285283,252.48,252.4,31.93417938]
[1737221690723,36.63773221,252.48,252.4,31.93417938]
[1737221690928,36.63773221,252.48,252.37,31.93417938]
[1737221691927,3.961,252.46,252.37,31.93417938]
[1737221692128,0.74288164,252.45,252.37,31.93417938]
[1737221692625,55.71106338,252.44,252.33,31.96417938]
[1737221692943,13.8635,252.46,252.33,31.96417938]
[1737221692944,4.70395335,252.46,252.41,31.93417938]
[1737221693250,0.74282583,252.45,252.36,31.93417938]
[1737221693458,23.776884,252.44,252.34,31.93417938]
[1737221693642,23.776884,252.4,252.33,0.03]
[1737221693838,0.063,252.5,252.33,0.03]
[1737221694150,0.063,252.5,252.47,31.93417938]
[1737221694326,0.063,252.5,252.49,31.93417938]
[1737221697034,0.00474979,252.5,252.49,31.93417938]
[1737221698740,0.00474979,252.5,252.47,31.93417938]
[1737221699055,0.00474979,252.5,252.45,31.93417938]
[1737221699347,0.00474979,252.5,252.43,31.93417938]
[1737221699950,0.00474979,252.5,252.41,31.93417938]
[1737221700146,0.74757033,252.5,252.41,31.93417938]
[1737221700464,13.8663,252.41,252.33,0.03]
[1737221700635,3.9609,252.47,252.39,31.93417938]
[1737221700836,23.776884,252.44,252.33,0.03]
[1737221701054,0.74309827,252.43,252.34,31.93417938]
[1737221701442,0.74296629,252.46,252.34,31.93417938]
[1737221701751,0.74296629,252.46,252.33,0.03]
[1737221702138,20.0,252.38,252.33,0.03]
[1737221702457,0.74329065,252.37,252.33,0.03]
[1737221702646,31.93417938,252.36,252.33,0.03]
[1737221702840,31.93417938,252.34,252.33,0.03]
[1737221703043,35.89667938,252.37,252.33,0.03]
[1737221703351,23.776884,252.34,252.33,0.03]
[1737221703550,0.74335696,252.34,252.33,0.03]
[1737221703745,0.74328062,252.45,252.33,31.96417938]
[1737221703951,3.96514979,252.5,252.43,31.93417938]
[1737221704249,0.74271146,252.49,252.43,31.93417938]
[1737221704658,0.74271146,252.49,252.33,31.96417938]
[1737221704659,3.9607,252.48,252.41,31.93417938]
[1737221704852,32.67702644,252.47,252.37,31.93417938]
[1737221705037,31.93417938,252.43,252.33,31.96417938]
[1737221705239,0.74310329,252.42,252.37,31.93417938]
[1737221705460,0.74294979,252.44,252.37,31.93417938]
[1737221705668,31.93417938,252.43,252.33,0.03]
[1737221705867,23.776884,252.38,252.33,0.03]
[1737221706063,31.93417938,252.35,252.33,0.03]
[1737221706244,23.776884,252.33,252.29,0.03]
[1737221706576,59.67456338,252.3,252.29,0.03]
[1737221706863,35.89767938,252.3,252.29,0.03]
[1737221707066,20.0,252.27,252.13,31.93417938]
[1737221707366,66.36748617,252.3,252.07,0.03]
[1737221707367,31.93417938,252.22,252.14,31.93417938]
[1737221707541,31.93417938,252.22,252.07,0.03]
[1737221707542,23.776884,252.2,252.12,31.93417938]
[1737221707745,32.67789062,252.19,252.1,31.93417938]
[1737221708161,31.93417938,252.17,252.08,31.93417938]
[1737221708344,0.74379206,252.16,252.08,31.93417938]
[1737221708541,31.93417938,252.11,252.07,0.03]
[1737221708742,23.776884,252.08,252.03,0.03]
[1737221709044,20.0,251.97,251.84,5.83280165]
[1737221709362,31.93417938,251.86,251.84,5.83280165]
[1737221709570,0.74461352,251.93,251.85,31.93417938]
[1737221709868,31.93417938,251.97,251.88,31.93417938]
[1737221710164,31.93417938,251.93,251.74,0.03]
[1737221710370,0.74444893,251.92,251.83,31.93417938]
[1737221710548,0.74444159,251.92,251.85,31.93417938]
[1737221710742,31.93417938,251.96,251.85,31.93417938]
[1737221711055,0.74433863,251.95,251.87,31.93417938]
[1737221711259,0.74434939,251.95,251.89,31.93417938]
[1737221711441,31.93417938,252.03,251.93,31.93417938]
[1737221711641,0.74411593,252.02,251.93,31.93417938]
[1737221711849,0.74411593,252.02,251.95,31.93417938]
[1737221712249,0.74411323,252.04,251.95,31.93417938]
[1737221712746,0.74408654,252.11,252.03,31.93417938]
[1737221713066,0.74390568,252.1,251.94,31.93417938]
[1737221713250,51.5467447,252.29,252.08,31.93417938]
[1737221713251,31.93417938,252.25,252.08,31.93417938]
[1737221713450,0.74355434,252.24,252.15,31.93417938]
[1737221713671,0.74358111,252.23,252.18,31.93417938]
[1737221713871,23.776884,252.21,252.12,31.93417938]
[1737221714049,0.74363975,252.2,252.12,31.93417938]
[1737221714372,31.93417938,252.17,252.08,31.93417938]
[1737221714669,0.74376492,252.16,252.06,31.93417938]
[1737221714847,3.9658,252.15,252.06,31.93417938]
[1737221715051,0.74379336,252.14,252.06,31.93417938]
[1737221715246,23.776884,252.13,252.04,31.93417938]
[1737221715447,31.93417938,252.06,251.94,31.93417938]
[1737221715704,31.93417938,252.01,251.9,31.93417938]
[1737221715869,0.7441866,252.04,251.94,31.93417938]
[1737221716246,55.71106338,252.03,251.94,31.93417938]
[1737221716453,31.93417938,252.07,251.96,31.93417938]
[1737221716649,0.74406118,252.06,251.98,31.93417938]